[Event "Sunway Sitges Chess Festival"]
[Date "2024.12.22"]
[White "Safarov, Deniel"]
[Black "Xu, Minghui"]
[WhiteElo "2319"]
[BlackElo "2405"]
[Round "10.15"]
[Result "1/2-1/2"]
[TimeControl "40/5400+30:1800+30"]

1. e4 {[%clk 1:28:29]} 1... e5 {[%clk 1:30:44]} 2. Nf3 {[%clk 1:28:50]} 2... Nc6
{[%clk 1:30:52]} 3. Bb5 {[%clk 1:29:13]} 3... a6 {[%clk 1:31:07]} 4. Ba4 {[%clk
1:29:36]} 4... Nf6 {[%clk 1:31:31]} 5. O-O {[%clk 1:29:59]} 5... b5 {[%clk
1:31:20]} 6. Bb3 {[%clk 1:30:23]} 6... Bc5 {[%clk 1:31:23]} 7. c3 {[%clk
1:29:16]} 7... d6 {[%clk 1:31:38]} 8. a4 {[%clk 1:29:33]} 8... Bb7 {[%clk
1:25:28]} 9. d4 {[%clk 1:29:26]} 9... Bb6 {[%clk 1:23:56]} 10. Bg5 {[%clk
1:27:15]} 10... h6 {[%clk 1:23:29]} 11. Bxf6 {[%clk 1:27:12]} 11... Qxf6 {[%clk
1:23:23]} 12. Bd5 {[%clk 1:25:36]} 12... O-O {[%clk 1:17:48]} 13. dxe5 {[%clk
1:19:20]} 13... dxe5 {[%clk 1:29:27]} 14. axb5 {[%clk 1:19:02]} 14... axb5
{[%clk 1:29:49]} 15. Rxa8 {[%clk 1:18:02]} 15... Rxa8 {[%clk 1:29:20]} 16. Na3
{[%clk 1:00:53]} 16... Nd8 {[%clk 1:21:55]} 17. Bxb7 {[%clk 1:00:46]} 17... Nxb7
{[%clk 1:20:01]} 18. Qd5 {[%clk 0:50:37]} 18... c6 {[%clk 1:18:29]} 19. Qxe5
{[%clk 1:10:54]} 19... Nc5 {[%clk 0:44:39]} 20. Qd4 {[%clk 0:55:20]} 20... Qxd4
{[%clk 0:41:51]} 21. cxd4 {[%clk 0:52:25]} 21... Nd3 {[%clk 0:39:09]} 22. Rb1
{[%clk 0:46:04]} 22... Nxb2 {[%clk 0:38:29]} 23. Rxb2 {[%clk 0:33:27]} 23...
Rxa3 {[%clk 0:41:03]} 24. Kf1 {[%clk 0:28:03]} 24... Ba5 {[%clk 0:36:18]} 25.
Rc2 {[%clk 0:12:33]} 25... b4 {[%clk 0:21:21]} 26. Rxc6 {[%clk 0:12:26]} 26...
b3 {[%clk 0:21:45]} 27. Rc8+ {[%clk 0:12:24]} 27... Kh7 {[%clk 0:22:13]} 28. Rb8
{[%clk 0:09:31]} 28... Bc3 {[%clk 0:19:48]} 29. Ke2 {[%clk 0:07:33]} 29... b2
{[%clk 0:18:20]} 30. Kd3 {[%clk 0:-1:-23]} 30... Ra8 {[%clk 0:09:54]} 31. Rb7
{[%clk 0:-1:-28]} 31... Ra7 {[%clk 0:09:53]} 32. Rb8 {[%clk 0:12:02]} 1/2-1/2

[Variant "Standard"]
[Site "Europe Echecs"]

[Event "Sunway Sitges Chess Festival"]
[Date "2024.12.22"]
[White "Aloma Vidal, Robert"]
[Black "Brzezina, Piotr"]
[WhiteElo "2398"]
[BlackElo "2274"]
[Round "10.16"]
[Result "1/2-1/2"]
[TimeControl "40/5400+30:1800+30"]

1. c4 {[%clk 1:29:55]} 1... Nf6 {[%clk 1:29:21]} 2. g3 {[%clk 1:30:22]} 2... c5
{[%clk 1:27:34]} 3. Bg2 {[%clk 1:30:43]} 3... d5 {[%clk 1:26:33]} 4. cxd5 {[%clk
1:31:05]} 4... Nxd5 {[%clk 1:27:00]} 5. d4 {[%clk 1:31:15]} 5... cxd4 {[%clk
1:24:37]} 6. Qxd4 {[%clk 1:31:37]} 6... e6 {[%clk 1:24:19]} 7. Nf3 {[%clk
1:32:02]} 7... Nc6 {[%clk 1:24:12]} 8. Qd3 {[%clk 1:32:27]} 8... Be7 {[%clk
1:12:22]} 9. O-O {[%clk 1:30:22]} 9... O-O {[%clk 1:12:30]} 10. Rd1 {[%clk
1:24:34]} 10... Qc7 {[%clk 0:58:43]} 11. Nc3 {[%clk 1:15:13]} 11... Nxc3 {[%clk
0:52:01]} 12. Qxc3 {[%clk 1:13:24]} 12... e5 {[%clk 0:51:26]} 13. Bg5 {[%clk
1:10:55]} 13... Bg4 {[%clk 0:29:57]} 14. Rac1 {[%clk 1:03:18]} 14... Bxf3 {[%clk
0:24:57]} 15. Bxe7 {[%clk 1:03:12]} 15... Qxe7 {[%clk 0:25:22]} 16. Qxf3 {[%clk
0:53:14]} 16... Rfd8 {[%clk 0:21:54]} 17. e3 {[%clk 0:53:00]} 17... g6 {[%clk
0:21:31]} 18. h4 {[%clk 0:52:02]} 18... Kg7 {[%clk 0:17:59]} 19. a3 {[%clk
0:49:53]} 19... Rxd1+ {[%clk 0:17:53]} 20. Qxd1 {[%clk 0:50:13]} 20... e4 {[%clk
0:-5:-37]} 21. b4 {[%clk 0:29:58]} 21... a6 {[%clk 0:08:50]} 22. Rc5 {[%clk
0:29:33]} 22... f5 {[%clk 0:03:10]} 23. h5 {[%clk 0:19:57]} 23... Kh6 {[%clk
0:00:-44]} 24. hxg6 {[%clk 0:13:13]} 24... hxg6 {[%clk 0:07:06]} 25. Bf1 {[%clk
0:13:27]} 25... Ne5 {[%clk 0:04:05]} 26. Be2 {[%clk 0:12:36]} 26... Kg7 {[%clk
0:00:32]} 27. Kg2 {[%clk 0:10:53]} 27... Re8 {[%clk 0:00:37]} 28. Qc2 {[%clk
0:10:36]} 28... Qf6 {[%clk 0:00:32]} 29. Rc7+ {[%clk 0:10:37]} 29... Re7 {[%clk
0:01:01]} 30. Qc5 {[%clk 0:09:17]} 30... Nc6 {[%clk 0:00:48]} 31. Rc8 {[%clk
0:09:01]} 31... Qe6 {[%clk 0:00:47]} 32. Qc3+ {[%clk 0:05:42]} 32... Qe5 {[%clk
0:00:41]} 33. Qc1 {[%clk 0:04:15]} 33... Re8 {[%clk 0:00:34]} 34. Rxe8 {[%clk
0:04:09]} 34... Qxe8 {[%clk 0:01:03]} 35. a4 {[%clk 0:04:12]} 35... Ne5 {[%clk
0:00:31]} 36. Qc7+ {[%clk 0:04:22]} 36... Kh6 {[%clk 0:00:50]} 37. Qxb7 {[%clk
0:02:15]} 37... Qxa4 {[%clk 0:01:00]} 38. Qb8 {[%clk 0:01:58]} 38... Nf3 {[%clk
0:01:29]} 39. Qh8+ {[%clk 0:00:59]} 39... Kg5 {[%clk 0:01:57]} 40. Qd8+ {[%clk
0:30:50]} 40... Kh6 {[%clk 0:32:03]} 41. g4 {[%clk 0:19:35]} 41... fxg4 {[%clk
0:17:48]} 42. Qf8+ {[%clk 0:18:18]} 42... Kh5 {[%clk 0:17:34]} 43. Qh8+ {[%clk
0:11:38]} 43... Kg5 {[%clk 0:17:49]} 44. Qd8+ {[%clk 0:11:21]} 44... Kh6 {[%clk
0:16:37]} 45. Qf8+ {[%clk 0:08:21]} 45... Kh5 {[%clk 0:16:52]} 46. Qh8+ {[%clk
0:05:17]} 46... Kg5 {[%clk 0:17:20]} 47. Qd8+ {[%clk 0:03:40]} 47... Kh6 {[%clk
0:17:44]} 1/2-1/2

[Variant "Standard"]
[Site "Europe Echecs"]

[Event "Sunway Sitges Chess Festival"]
[Date "2024.12.22"]
[White "Esplugas Esteve, Vicenc"]
[Black "Isanzhulov, Arystan"]
[WhiteElo "2277"]
[BlackElo "2395"]
[Round "10.17"]
[Result "0-1"]
[TimeControl "40/5400+30:1800+30"]

1. d4 {[%clk 1:29:39]} 1... Nf6 {[%clk 1:30:50]} 2. c4 {[%clk 1:30:07]} 2... e6
{[%clk 1:31:16]} 3. Nc3 {[%clk 1:30:31]} 3... Bb4 {[%clk 1:31:25]} 4. f3 {[%clk
1:30:56]} 4... Ba5 {[%clk 1:31:48]} 5. e4 {[%clk 1:29:01]} 5... d5 {[%clk
1:31:55]} 6. e5 {[%clk 1:26:58]} 6... Nfd7 {[%clk 1:32:02]} 7. f4 {[%clk
1:20:56]} 7... c5 {[%clk 1:30:35]} 8. cxd5 {[%clk 1:16:46]} 8... exd5 {[%clk
1:27:53]} 9. dxc5 {[%clk 1:10:21]} 9... Nxc5 {[%clk 1:19:43]} 10. Be3 {[%clk
1:01:12]} 10... Ne4 {[%clk 1:14:00]} 11. Rc1 {[%clk 0:56:08]} 11... Qh4+ {[%clk
0:58:40]} 12. g3 {[%clk 0:52:56]} 12... Nxg3 {[%clk 0:58:40]} 13. Nf3 {[%clk
0:53:10]} 13... Qh6 {[%clk 0:51:16]} 14. Qxd5 {[%clk 0:46:52]} 14... Nc6 {[%clk
0:48:17]} 15. Bb5 {[%clk 0:36:28]} 15... Nxh1 {[%clk 0:45:24]} 16. Bxc6+ {[%clk
0:35:02]} 16... Qxc6 {[%clk 0:44:30]} 17. Ke2 {[%clk 0:30:43]} 17... Bxc3 {[%clk
0:39:27]} 18. Qxc6+ {[%clk 0:31:07]} 18... bxc6 {[%clk 0:39:55]} 19. bxc3 {[%clk
0:30:59]} 19... Ba6+ {[%clk 0:40:14]} 20. c4 {[%clk 0:30:31]} 20... Rb8 {[%clk
0:40:02]} 21. Kd3 {[%clk 0:29:28]} 21... Rb2 {[%clk 0:39:30]} 22. Rxh1 {[%clk
0:29:52]} 22... Rxa2 {[%clk 0:39:48]} 23. Bc5 {[%clk 0:29:47]} 23... Ra4 {[%clk
0:23:44]} 24. Rc1 {[%clk 0:29:19]} 24... Bc8 {[%clk 0:09:50]} 25. Nd4 {[%clk
0:28:03]} 25... g5 {[%clk 0:09:26]} 26. Nxc6 {[%clk 0:24:23]} 26... gxf4 {[%clk
0:08:01]} 27. Nxa7 {[%clk 0:23:09]} 27... Be6 {[%clk 0:04:53]} 28. Nb5 {[%clk
0:18:35]} 28... Kd7 {[%clk 0:05:13]} 29. Nd6 {[%clk 0:17:09]} 29... Kc6 {[%clk
0:03:36]} 30. Bd4 {[%clk 0:15:03]} 30... Rb8 {[%clk 0:03:31]} 31. Rf1 {[%clk
0:14:32]} 31... Rb3+ {[%clk 0:03:07]} 32. Ke4 {[%clk 0:12:21]} 32... Ra2 {[%clk
0:03:35]} 33. h4 {[%clk 0:08:09]} 33... Re2+ {[%clk 0:01:23]} 34. Kxf4 {[%clk
0:08:27]} 34... Rh2 {[%clk 0:01:22]} 35. Bf2 {[%clk 0:03:59]} 35... Rg2 {[%clk
0:01:33]} 36. Be3 {[%clk 0:03:18]} 36... Rg4+ {[%clk 0:01:29]} 37. Kf3 {[%clk
0:03:44]} 37... Rxh4 {[%clk 0:01:55]} 38. Re1 {[%clk 0:03:13]} 38... Rh3+ {[%clk
0:01:43]} 39. Kf4 {[%clk 0:03:33]} 39... f6 {[%clk 0:01:06]} 40. Ne4 {[%clk
0:32:03]} 40... Rbxe3 {[%clk 0:30:55]} 41. Rxe3 {[%clk 0:31:48]} 41... fxe5+
{[%clk 0:31:21]} 0-1

[Variant "Standard"]
[Site "Europe Echecs"]

[Event "Sunway Sitges Chess Festival"]
[Date "2024.12.22"]
[White "Hess, Max"]
[Black "Hauchamps, Maxime"]
[WhiteElo "2385"]
[BlackElo "2269"]
[Round "10.18"]
[Result "1-0"]
[TimeControl "40/5400+30:1800+30"]

1. d4 {[%clk 1:26:39]} 1... d5 {[%clk 1:30:48]} 2. c4 {[%clk 1:26:54]} 2... c6
{[%clk 1:31:13]} 3. Nc3 {[%clk 1:27:10]} 3... Nf6 {[%clk 1:31:36]} 4. e3 {[%clk
1:27:24]} 4... e6 {[%clk 1:31:58]} 5. Nf3 {[%clk 1:27:00]} 5... Nbd7 {[%clk
1:32:18]} 6. Be2 {[%clk 1:27:01]} 6... Bd6 {[%clk 1:32:36]} 7. O-O {[%clk
1:26:13]} 7... O-O {[%clk 1:32:54]} 8. b3 {[%clk 1:26:15]} 8... b6 {[%clk
1:33:18]} 9. Bb2 {[%clk 1:26:37]} 9... Bb7 {[%clk 1:33:43]} 10. Bd3 {[%clk
1:25:00]} 10... Re8 {[%clk 1:32:31]} 11. Rc1 {[%clk 1:21:43]} 11... Rc8 {[%clk
1:30:01]} 12. Re1 {[%clk 1:18:23]} 12... e5 {[%clk 1:16:54]} 13. dxe5 {[%clk
1:17:09]} 13... Nxe5 {[%clk 1:17:07]} 14. cxd5 {[%clk 1:17:16]} 14... Nxd3
{[%clk 1:13:15]} 15. Qxd3 {[%clk 1:13:29]} 15... Bb8 {[%clk 1:08:15]} 16. e4
{[%clk 1:01:51]} 16... cxd5 {[%clk 1:04:13]} 17. exd5 {[%clk 1:01:34]} 17... Qd6
{[%clk 0:57:13]} 18. Rxe8+ {[%clk 0:53:56]} 18... Rxe8 {[%clk 0:56:54]} 19. Rd1
{[%clk 0:54:17]} 19... Rd8 {[%clk 0:51:47]} 20. Qd4 {[%clk 0:48:40]} 20... Bxd5
{[%clk 0:34:02]} 21. Qe3 {[%clk 0:38:00]} 21... Qf8 {[%clk 0:29:05]} 22. Nxd5
{[%clk 0:36:30]} 22... Nxd5 {[%clk 0:27:25]} 23. Qd3 {[%clk 0:30:46]} 23... Bc7
{[%clk 0:25:45]} 24. Ng5 {[%clk 0:22:33]} 24... Nf6 {[%clk 0:25:32]} 25. Qc2
{[%clk 0:22:33]} 25... Rxd1+ {[%clk 0:19:17]} 26. Qxd1 {[%clk 0:22:59]} 26...
Qe7 {[%clk 0:19:13]} 27. g3 {[%clk 0:18:02]} 27... h6 {[%clk 0:19:20]} 28. Nf3
{[%clk 0:18:04]} 28... Bd6 {[%clk 0:16:07]} 29. Nd4 {[%clk 0:17:14]} 29... Bc5
{[%clk 0:16:14]} 30. Nf5 {[%clk 0:13:12]} 30... Qe6 {[%clk 0:14:46]} 31. Qf3
{[%clk 0:12:21]} 31... Qe1+ {[%clk 0:06:50]} 32. Kg2 {[%clk 0:12:46]} 32... Ne4
{[%clk 0:07:16]} 33. Bxg7 {[%clk 0:07:02]} 33... Bxf2 {[%clk 0:06:40]} 34. Bxh6
{[%clk 0:03:49]} 34... Qg1+ {[%clk 0:05:34]} 35. Kh3 {[%clk 0:04:18]} 35... Qf1+
{[%clk 0:05:49]} 36. Kh4 {[%clk 0:03:11]} 36... Bxg3+ {[%clk 0:06:03]} 37. Kg4
{[%clk 0:03:39]} 37... Qg1 {[%clk 0:01:14]} 38. hxg3 {[%clk 0:02:05]} 38... Nf2+
{[%clk 0:01:43]} 39. Kh5 {[%clk 0:01:28]} 39... Qf1 {[%clk 0:01:00]} 40. Ne7+
{[%clk 0:31:20]} 1-0

[Variant "Standard"]
[Site "Europe Echecs"]

[Event "Sunway Sitges Chess Festival"]
[Date "2024.12.22"]
[White "Arkell, Keith C"]
[Black "Chia, Yu Zhe Ashton"]
[WhiteElo "2355"]
[BlackElo "2252"]
[Round "10.19"]
[Result "1-0"]
[TimeControl "40/5400+30:1800+30"]

1. d4 {[%clk 1:30:56]} 1... Nf6 {[%clk 1:23:11]} 2. Nf3 {[%clk 1:31:09]} 2... e6
{[%clk 1:23:10]} 3. c4 {[%clk 1:31:34]} 3... b6 {[%clk 1:23:34]} 4. g3 {[%clk
1:31:59]} 4... Bb7 {[%clk 1:23:49]} 5. Bg2 {[%clk 1:32:24]} 5... Be7 {[%clk
1:24:10]} 6. O-O {[%clk 1:32:50]} 6... O-O {[%clk 1:24:27]} 7. Nc3 {[%clk
1:33:03]} 7... Ne4 {[%clk 1:24:51]} 8. Nxe4 {[%clk 1:33:19]} 8... Bxe4 {[%clk
1:25:14]} 9. Nh4 {[%clk 1:33:46]} 9... Bxg2 {[%clk 1:25:19]} 10. Nxg2 {[%clk
1:34:12]} 10... d6 {[%clk 1:24:57]} 11. e4 {[%clk 1:34:26]} 11... Nd7 {[%clk
1:25:06]} 12. b3 {[%clk 1:34:22]} 12... Bf6 {[%clk 1:24:14]} 13. Rb1 {[%clk
1:33:47]} 13... Qe7 {[%clk 1:22:27]} 14. Re1 {[%clk 1:33:03]} 14... g6 {[%clk
1:21:37]} 15. Bh6 {[%clk 1:33:10]} 15... Rfe8 {[%clk 1:15:37]} 16. Ne3 {[%clk
1:32:56]} 16... e5 {[%clk 1:09:34]} 17. Nd5 {[%clk 1:33:16]} 17... Qd8 {[%clk
1:10:01]} 18. Nxf6+ {[%clk 1:32:11]} 18... Qxf6 {[%clk 1:04:18]} 19. d5 {[%clk
1:32:32]} 19... Kh8 {[%clk 1:02:06]} 20. Qg4 {[%clk 1:31:57]} 20... Qe7 {[%clk
1:02:06]} 21. Re2 {[%clk 1:22:42]} 21... Nf6 {[%clk 1:01:12]} 22. Qh4 {[%clk
1:17:38]} 22... Ng8 {[%clk 1:01:31]} 23. Bg5 {[%clk 1:17:45]} 23... f6 {[%clk
1:01:49]} 24. Bd2 {[%clk 1:17:53]} 24... Qf7 {[%clk 0:55:47]} 25. f4 {[%clk
1:12:38]} 25... Rf8 {[%clk 0:55:08]} 26. Rf1 {[%clk 1:12:45]} 26... Qd7 {[%clk
0:55:12]} 27. Ref2 {[%clk 1:12:36]} 27... Qg7 {[%clk 0:53:36]} 28. Qh3 {[%clk
1:11:31]} 28... Rae8 {[%clk 0:52:56]} 29. f5 {[%clk 1:10:04]} 29... g5 {[%clk
0:53:11]} 30. Qh5 {[%clk 1:10:07]} 30... Qf7 {[%clk 0:53:06]} 31. Qxf7 {[%clk
1:10:29]} 31... Rxf7 {[%clk 0:53:35]} 32. b4 {[%clk 1:10:36]} 32... Rc8 {[%clk
0:53:38]} 33. Rc1 {[%clk 1:10:19]} 33... c6 {[%clk 0:53:36]} 34. dxc6 {[%clk
1:10:32]} 34... Rxc6 {[%clk 0:54:01]} 35. b5 {[%clk 1:10:56]} 35... Rc8 {[%clk
0:54:09]} 36. Bb4 {[%clk 1:11:14]} 36... Kg7 {[%clk 0:53:20]} 37. Bxd6 {[%clk
1:07:56]} 37... Rd7 {[%clk 0:53:42]} 38. Rd2 {[%clk 1:07:16]} 38... Kf7 {[%clk
0:51:58]} 39. Rcc2 {[%clk 1:03:18]} 39... Ke8 {[%clk 0:51:52]} 40. Kf2 {[%clk
1:32:31]} 40... Nh6 {[%clk 1:21:57]} 41. Ke2 {[%clk 1:30:49]} 41... Nf7 {[%clk
1:18:34]} 42. Bb4 {[%clk 1:31:11]} 42... Rdc7 {[%clk 1:18:59]} 43. Kd3 {[%clk
1:30:22]} 43... g4 {[%clk 1:19:20]} 44. Rc1 {[%clk 0:44:19]} 44... Ng5 {[%clk
1:19:26]} 45. Bd6 {[%clk 0:43:23]} 45... Rd7 {[%clk 1:18:36]} 46. Ke3 {[%clk
0:43:41]} 46... Rcd8 {[%clk 1:17:13]} 47. Rcd1 {[%clk 0:43:51]} 47... Nf3 {[%clk
1:15:26]} 48. Rd5 {[%clk 0:44:05]} 48... Nd4 {[%clk 1:15:04]} 49. Bxe5 {[%clk
0:37:44]} 49... fxe5 {[%clk 1:12:05]} 50. Rxe5+ {[%clk 0:33:40]} 50... Kf7
{[%clk 1:11:38]} 51. Rd5 {[%clk 0:33:31]} 51... Rxd5 {[%clk 1:11:30]} 52. cxd5
{[%clk 0:33:49]} 52... Nxb5 {[%clk 1:07:00]} 53. Rc1 {[%clk 0:27:22]} 53... Re8
{[%clk 1:04:04]} 54. Kf4 {[%clk 0:27:09]} 54... Nd4 {[%clk 1:04:30]} 55. Rc4
{[%clk 0:25:15]} 55... Ne2+ {[%clk 1:04:28]} 56. Kxg4 {[%clk 0:19:35]} 56... Kf6
{[%clk 1:04:50]} 57. Kf3 {[%clk 0:18:23]} 57... Ng1+ {[%clk 1:05:13]} 58. Kg2
{[%clk 0:18:42]} 58... Ne2 {[%clk 1:05:37]} 59. Kf2 {[%clk 0:18:57]} 59... Nc3
{[%clk 1:05:52]} 60. Rxc3 {[%clk 0:19:17]} 60... Rxe4 {[%clk 1:06:18]} 61. Rd3
{[%clk 0:19:20]} 61... Kxf5 {[%clk 1:06:27]} 62. d6 {[%clk 0:15:19]} 62... Re8
{[%clk 1:06:46]} 63. Ra3 {[%clk 0:14:55]} 63... a5 {[%clk 1:04:09]} 64. Rb3
{[%clk 0:15:19]} 64... Rb8 {[%clk 1:04:34]} 65. d7 {[%clk 0:15:41]} 65... Rd8
{[%clk 1:04:15]} 66. Kf3 {[%clk 0:11:04]} 66... Rxd7 {[%clk 1:04:19]} 67. Rb5+
{[%clk 0:11:29]} 67... Kf6 {[%clk 1:04:32]} 68. Rxb6+ {[%clk 0:11:51]} 68... Kg7
{[%clk 1:04:56]} 69. Ke3 {[%clk 0:10:26]} 69... Re7+ {[%clk 1:04:35]} 70. Kd3
{[%clk 0:10:50]} 70... Rf7 {[%clk 1:05:01]} 71. Re6 {[%clk 0:09:23]} 71... Rf1
{[%clk 1:04:37]} 72. Re4 {[%clk 0:07:39]} 72... Kg6 {[%clk 1:03:23]} 73. Rg4+
{[%clk 0:06:46]} 73... Kh6 {[%clk 1:02:02]} 74. Kc3 {[%clk 0:05:05]} 74... Rf3+
{[%clk 1:02:06]} 75. Kb2 {[%clk 0:04:23]} 75... Rf2+ {[%clk 1:02:31]} 76. Kb3
{[%clk 0:04:35]} 76... Rxh2 {[%clk 1:02:55]} 77. a3 {[%clk 0:03:35]} 77... Rg2
{[%clk 1:02:48]} 78. Ka4 {[%clk 0:03:50]} 78... Kh5 {[%clk 1:02:15]} 79. Rg7
{[%clk 0:03:50]} 79... h6 {[%clk 1:02:40]} 80. Kxa5 {[%clk 0:04:01]} 80... Ra2
{[%clk 1:03:03]} 81. g4+ {[%clk 0:04:26]} 81... Kh4 {[%clk 1:03:29]} 82. a4
{[%clk 0:04:46]} 82... Kg3 {[%clk 1:02:44]} 83. Rg6 {[%clk 0:03:52]} 83... Rh2
{[%clk 1:02:36]} 84. Kb6 {[%clk 0:02:53]} 84... Kf4 {[%clk 1:03:01]} 85. a5
{[%clk 0:03:10]} 85... Ke5 {[%clk 1:03:27]} 86. a6 {[%clk 0:03:32]} 86... Rb2+
{[%clk 1:03:53]} 87. Kc7 {[%clk 0:03:57]} 87... Kd5 {[%clk 1:03:02]} 1-0

[Variant "Standard"]
[Site "Europe Echecs"]

[Event "Sunway Sitges Chess Festival"]
[Date "2024.12.22"]
[White "Alexiadis, Hristos"]
[Black "Marie, Maxime"]
[WhiteElo "2341"]
[BlackElo "2196"]
[Round "10.20"]
[Result "1-0"]
[TimeControl "40/5400+30:1800+30"]

1. Nf3 {[%clk 1:29:59]} 1... d5 {[%clk 1:26:59]} 2. c4 {[%clk 1:30:22]} 2... d4
{[%clk 1:25:04]} 3. g3 {[%clk 1:30:13]} 3... Nc6 {[%clk 1:23:56]} 4. Bg2 {[%clk
1:30:35]} 4... a5 {[%clk 1:23:44]} 5. O-O {[%clk 1:30:47]} 5... e5 {[%clk
1:23:51]} 6. d3 {[%clk 1:30:16]} 6... Bc5 {[%clk 1:21:16]} 7. Nbd2 {[%clk
1:29:33]} 7... Nge7 {[%clk 1:05:08]} 8. Nb3 {[%clk 1:28:52]} 8... Bb6 {[%clk
0:57:35]} 9. a4 {[%clk 1:21:57]} 9... O-O {[%clk 0:52:07]} 10. Bd2 {[%clk
1:25:01]} 10... Qd6 {[%clk 0:50:57]} 11. Ng5 {[%clk 1:22:07]} 11... Qg6 {[%clk
0:37:39]} 12. Rc1 {[%clk 1:21:11]} 12... f5 {[%clk 0:32:56]} 13. c5 {[%clk
1:13:02]} 13... Ba7 {[%clk 0:40:45]} 14. Nf3 {[%clk 1:13:07]} 14... Bb8 {[%clk
0:26:58]} 15. Qe1 {[%clk 1:01:51]} 15... h6 {[%clk 0:31:54]} 16. e3 {[%clk
0:53:38]} 16... dxe3 {[%clk 0:26:53]} 17. fxe3 {[%clk 0:51:32]} 17... Qe6 {[%clk
0:21:50]} 18. Nxa5 {[%clk 0:49:37]} 18... Nxa5 {[%clk 0:20:14]} 19. Bxa5 {[%clk
0:54:24]} 19... Nc6 {[%clk 0:20:25]} 20. Bc3 {[%clk 0:54:41]} 20... Rxa4 {[%clk
0:20:44]} 21. Qd1 {[%clk 0:52:03]} 21... Ra8 {[%clk 0:10:59]} 22. d4 {[%clk
0:43:31]} 22... Rd8 {[%clk 0:18:32]} 23. Qc2 {[%clk 0:43:46]} 23... e4 {[%clk
0:18:48]} 24. Nh4 {[%clk 0:38:25]} 24... Ne7 {[%clk 0:19:05]} 25. g4 {[%clk
0:38:01]} 25... fxg4 {[%clk 0:17:06]} 26. Bxe4 {[%clk 0:37:55]} 26... c6 {[%clk
0:07:51]} 27. Rf2 {[%clk 0:29:24]} 27... g3 {[%clk 0:14:47]} 28. Rg2 {[%clk
0:27:38]} 28... Qh3 {[%clk 0:12:44]} 29. hxg3 {[%clk 0:26:07]} 29... Bxg3 {[%clk
0:13:08]} 30. Bh7+ {[%clk 0:24:48]} 30... Kh8 {[%clk 0:09:32]} 31. Ng6+ {[%clk
0:25:02]} 31... Nxg6 {[%clk 0:09:50]} 32. Qxg6 {[%clk 0:25:26]} 32... Bh2+
{[%clk 0:10:12]} 33. Kf2 {[%clk 0:22:32]} 33... Rf8+ {[%clk 0:05:35]} 34. Ke2
{[%clk 0:22:52]} 34... Rf7 {[%clk 0:00:-31]} 35. Rf1 {[%clk 0:19:42]} 35... Bf5
{[%clk 0:02:30]} 36. Rxf5 {[%clk 0:19:03]} 36... Re8 {[%clk 0:02:44]} 37. Rxf7
{[%clk 0:15:13]} 37... Qxe3+ {[%clk 0:03:06]} 38. Kd1 {[%clk 0:15:39]} 38... Be5
{[%clk 0:03:21]} 39. dxe5 {[%clk 0:12:43]} 39... Rd8+ {[%clk 0:03:43]} 40. Kc2
{[%clk 0:42:51]} 1-0

[Variant "Standard"]
[Site "Europe Echecs"]